bitfinex-derivatives/quotes_SOLF0:USTF0_20260114
["timestamp","ask_amount","ask_price","bid_price","bid_amount"]
[1768387114822,2.18682009,144.84,144.78,6.10504778]
[1768387115219,2.20369111,144.86,144.79,6.25563047]
[1768387115727,8.41909111,144.86,144.79,6.25563047]
[1768387115921,0.06629009,144.86,144.8,6.25563047]
[1768387116122,83.71740102,144.87,144.8,6.25563047]
[1768387116522,0.06837258,144.88,144.82,6.25563047]
[1768387116728,2.13740102,144.89,144.82,6.25563047]
[1768387117323,83.78782232,144.91,144.82,6.25563047]
[1768387117826,8.42245025,144.93,144.85,6.25563047]
[1768387118825,8.42245025,144.93,144.85,12.47133047]
[1768387120232,2.20985025,144.93,144.87,6.25563047]
[1768387123930,0.07244923,144.93,144.87,12.47043047]
[1768387124129,6.2121,144.94,144.88,6.25563047]
[1768387125527,0.08708053,144.92,144.85,8.35290102]
[1768387125730,0.08708053,144.92,144.85,6.2155]
[1768387126034,2.13740102,144.91,144.84,6.25563047]
[1768387126226,0.08708053,144.92,144.84,6.25563047]
[1768387126422,2.13740102,144.91,144.84,6.25563047]
[1768387127836,2.13740102,144.91,144.84,12.47173047]
[1768387128738,8.43738155,144.92,144.85,6.25563047]
[1768387129637,0.09376064,144.91,144.83,6.25563047]
[1768387129838,2.23116166,144.9,144.83,6.25563047]
[1768387130835,8.44486166,144.9,144.83,6.25563047]
[1768387131336,6.30851301,144.92,144.84,6.25563047]
[1768387131528,2.13740102,144.91,144.84,6.25563047]
[1768387132426,2.13740102,144.91,144.85,6.25563047]
[1768387132628,2.13740102,144.93,144.85,6.25563047]
[1768387133939,8.35010102,144.93,144.85,12.47133047]
[1768387135141,8.35010102,144.93,144.86,6.25563047]
[1768387135337,6.2127,144.93,144.86,12.47083047]
[1768387135539,6.2127,144.93,144.87,6.25563047]
[1768387136540,2.2422746,144.92,144.84,12.47153047]
[1768387137842,6.2132,144.91,144.84,12.47153047]
[1768387139844,6.2132,144.91,144.85,6.25563047]
[1768387141240,6.2136,144.9,144.85,6.25563047]
[1768387141741,6.32634602,144.89,144.82,6.25563047]
[1768387141935,0.11224602,144.89,144.82,6.25563047]
[1768387142849,6.2145,144.88,144.82,6.25563047]
[1768387143949,0.11224602,144.89,144.82,6.25563047]
[1768387145756,6.32644602,144.89,144.82,6.25563047]
[1768387147057,6.32644602,144.89,144.8,5.93416284]
[1768387147058,0.11789737,144.88,144.8,5.93416284]
[1768387147847,6.2149,144.87,144.8,5.93416284]
[1768387148054,6.2149,144.87,144.8,12.15196284]
[1768387148860,6.2154,144.86,144.8,5.93416284]
[1768387149562,0.12072122,144.87,144.8,12.15206284]
[1768387149857,0.12072122,144.87,144.81,5.93416284]
[1768387150759,6.33582122,144.87,144.81,5.93416284]
[1768387153347,91.11191301,144.89,144.81,12.15156284]
[1768387153653,91.11191301,144.89,144.82,5.93416284]
[1768387153654,85.02502238,144.89,144.82,5.93416284]
[1768387154861,6.2145,144.88,144.82,5.93416284]
[1768387155960,6.2151,144.87,144.82,5.93416284]
[1768387157561,81.56,144.89,144.83,5.93416284]
[1768387158157,87.7741,144.89,144.83,5.93416284]
[1768387158358,0.13276493,144.93,144.85,5.93416284]
[1768387158753,6.2129,144.92,144.85,5.93416284]
[1768387159153,0.13276493,144.93,144.85,5.93416284]
[1768387159555,6.2133,144.91,144.85,5.93416284]
[1768387161960,6.34546493,144.93,144.86,6.32759842]
[1768387162765,6.34546493,144.93,144.86,12.54289842]
[1768387163367,6.2128,144.92,144.86,6.32759842]
[1768387165566,33.1515,144.97,144.87,6.32759842]
[1768387165567,20.73,144.97,144.87,6.32759842]
[1768387165764,0.14348293,144.98,144.87,6.32759842]
[1768387166168,0.14348293,144.98,144.91,6.32759842]
[1768387168063,87.7701,144.99,144.92,6.32759842]
[1768387168272,3.33751301,145.02,144.92,6.32759842]
[1768387169071,91.10581301,145.03,144.94,6.32759842]
[1768387169869,91.10581301,145.03,144.95,6.32759842]
[1768387170774,91.25472275,145.03,144.95,6.32759842]
[1768387171275,91.10581301,145.03,144.95,6.32759842]
[1768387173776,81.56,145.03,144.96,6.32759842]
[1768387175778,91.25974314,145.03,144.96,6.32759842]
[1768387178475,87.92223013,145.03,144.96,6.32759842]
[1768387182186,6.36814044,145.02,144.96,6.32759842]
[1768387182587,0.15964044,145.02,144.96,6.32759842]
[1768387183188,84.89751301,145.03,144.96,6.32759842]
[1768387183386,81.56,145.03,144.96,6.32759842]
[1768387184687,9.70651225,145.06,144.98,6.2493883]
[1768387184888,3.49931225,145.06,144.98,6.2493883]
[1768387185082,0.16179924,145.05,144.98,6.2493883]
[1768387185787,6.36899924,145.05,144.98,6.2493883]
[1768387186379,6.36899924,145.05,144.98,12.4594883]
[1768387187490,6.36899924,145.05,144.99,6.2097]
[1768387187491,0.16179924,145.05,144.99,6.2097]
[1768387188696,3.33751301,145.06,145.0,6.2092]
[1768387188997,91.22865233,145.07,145.0,12.4585883]
[1768387191597,0.16632386,145.06,145.0,6.2493883]
[1768387192595,3.50383687,145.05,144.99,6.2097]
[1768387194199,6.37385369,145.08,145.01,6.2493883]
[1768387195397,9.71216015,145.07,145.01,6.2493883]
[1768387195795,6.2068,145.06,145.01,6.2493883]
[1768387195988,6.37561847,145.06,144.98,12.4591883]
[1768387196599,0.04413678,145.03,145.01,0.04461803]
[1768387197196,0.04413678,145.03,144.98,6.2493883]
[1768387201403,2.17649333,145.03,144.98,6.2493883]
[1768387201905,8.38459333,145.03,144.98,6.2493883]
[1768387204306,0.04413678,145.03,144.98,6.2493883]
[1768387204698,0.04413678,145.03,144.98,12.4591883]
[1768387204904,0.04413678,145.03,144.99,6.2493883]
[1768387206308,0.04413678,145.03,144.99,12.4590883]
[1768387207401,2.13235655,145.05,145.01,5.84255378]
[1768387207598,81.48,145.06,145.01,5.84255378]
[1768387208203,2.13235655,145.07,145.02,5.84255378]
[1768387208803,2.13235655,145.08,145.02,5.84255378]
[1768387209304,8.33835655,145.08,145.02,5.84255378]
[1768387210114,2.13235655,145.08,145.02,5.84255378]
[1768387210311,2.13235655,145.08,145.03,5.84255378]
[1768387211608,81.48,145.09,145.04,5.84255378]
[1768387211913,83.61235655,145.09,145.04,5.84255378]
[1768387212518,0.22381214,145.11,145.04,12.05005378]
[1768387212702,2.13235655,145.1,145.04,5.84255378]
[1768387215517,2.13235655,145.1,145.04,12.05015378]
[1768387215815,2.13235655,145.1,145.05,5.84255378]
[1768387216407,8.33745655,145.1,145.05,5.84255378]
[1768387217422,2.13235655,145.11,145.05,5.84255378]
[1768387218817,8.33705655,145.11,145.05,5.84255378]
[1768387220022,6.2051,145.1,145.05,5.84255378]
[1768387223222,8.33745655,145.1,145.05,5.84255378]
[1768387224322,6.2051,145.1,145.05,5.84255378]
[1768387224818,2.36110833,145.11,145.05,5.84255378]
[1768387225823,8.56580833,145.11,145.05,5.84255378]
[1768387228527,8.56580833,145.11,145.05,12.04965378]
[1768387230625,6.43345178,145.11,145.06,5.81716917]
[1768387230926,6.2047,145.11,145.06,5.81716917]
[1768387232424,81.48,145.12,145.07,5.81716917]
[1768387232818,8.33645655,145.13,145.07,5.81716917]
[1768387233622,2.13235655,145.13,145.07,12.02346917]
[1768387233926,2.13235655,145.13,145.08,5.81716917]
[1768387234925,8.33625655,145.13,145.08,5.81716917]
[1768387236424,2.13235655,145.11,145.06,6.26872853]
[1768387236629,2.36735483,145.11,145.05,6.26872853]
[1768387237924,2.36735483,145.11,145.05,12.47582853]
[1768387238427,2.13235655,145.11,145.06,6.26872853]
[1768387239128,2.13235655,145.11,145.06,12.47542853]
[1768387239932,2.13235655,145.12,145.06,12.47542853]
[1768387243331,87.90101343,145.15,145.08,6.26872853]
[1768387243628,2.13235655,145.14,145.08,6.26872853]
[1768387243931,2.13235655,145.14,145.09,6.26872853]
[1768387245331,0.04896139,145.13,145.09,6.26872853]
[1768387245930,0.04896139,145.13,145.09,12.47412853]
[1768387246131,83.59235655,145.15,145.05,98.68565655]
[1768387246132,2.13235655,145.15,145.1,6.26872853]
[1768387246334,96.4243,145.25,145.1,6.26872853]
[1768387246335,81.72791301,145.17,145.1,6.26872853]
[1768387246530,6.2026,145.16,145.1,6.26872853]
[1768387246724,2.13235655,145.15,145.1,6.26872853]
[1768387246931,2.13235655,145.13,145.08,6.26872853]
[1768387247123,0.28837756,145.16,145.08,6.26872853]
[1768387247329,2.13235655,145.13,145.08,6.26872853]
[1768387247632,2.13235655,145.13,145.09,0.04944658]
[1768387247837,2.42119183,145.13,145.09,0.04944658]
[1768387249042,6.2034,145.14,145.09,0.04944658]
[1768387249239,2.13235655,145.13,145.09,0.04944658]
[1768387249641,8.33575655,145.14,145.09,0.04944658]
[1768387250648,6.2034,145.14,145.09,0.04944658]
[1768387250843,8.33575655,145.14,145.09,0.04944658]
[1768387252944,6.2038,145.13,145.09,0.04944658]
[1768387253247,2.13235655,145.12,145.09,0.04944658]
[1768387254443,8.33655655,145.12,145.09,0.04944658]
[1768387255038,2.13235655,145.12,145.07,6.26872853]
[1768387257345,8.62937061,145.12,145.05,6.2072]
[1768387257544,2.13235655,145.1,145.05,12.47592853]
[1768387258945,2.13235655,145.1,145.05,6.26872853]
[1768387259342,8.33715655,145.11,145.05,6.26872853]
[1768387260849,8.63227202,145.09,145.02,6.26872853]
[1768387261749,96.5069,145.13,145.02,6.26872853]
[1768387261750,2.13235655,145.07,145.02,6.26872853]
[1768387262443,8.33875655,145.07,145.02,6.26872853]
[1768387263450,6.2064,145.07,145.02,6.26872853]
[1768387263938,6.50187962,145.07,144.99,6.26872853]
[1768387264747,6.50187962,145.07,144.99,12.47842853]
[1768387264949,6.50187962,145.07,145.0,6.26872853]
[1768387265147,0.29501409,145.06,144.96,5.80635235]
[1768387265652,0.29501409,145.06,144.99,5.80635235]
[1768387266039,0.29501409,145.06,144.99,12.01605235]
[1768387266244,85.065099,145.08,145.0,5.80635235]
[1768387266452,91.271299,145.08,145.0,5.80635235]
[1768387266846,87.9416095,145.08,145.0,5.80635235]
[1768387267748,87.9416095,145.08,145.0,12.01565235]
[1768387268052,87.9416095,145.08,145.01,5.80635235]
[1768387269254,0.05253102,145.06,145.03,0.05136815]
[1768387269451,81.44,145.08,145.03,5.8577205]
[1768387269748,0.29659275,145.11,145.03,5.8577205]
[1768387270348,6.50129275,145.11,145.04,5.80635235]
[1768387270848,0.29659275,145.11,145.04,5.80635235]
[1768387271352,0.29659275,145.11,145.06,0.04918364]
[1768387271857,6.2052,145.1,145.06,0.04918364]
[1768387277062,6.55820704,145.1,145.06,0.04918364]
[1768387277259,0.04607944,145.09,145.04,5.80635235]
[1768387278562,0.04607944,145.09,145.05,0.04496895]
[1768387278951,6.25157944,145.09,145.05,0.04496895]
[1768387280061,0.35442724,145.08,145.0,12.01535235]
[1768387280467,0.35442724,145.08,145.0,5.80635235]
[1768387281353,0.04351987,145.05,145.0,5.80635235]
[1768387286962,0.04351987,145.05,145.01,6.25982214]
[1768387287364,6.2062,145.08,145.01,6.25982214]
[1768387287862,6.2064,145.07,145.01,6.25982214]
[1768387289178,6.2068,145.06,145.01,6.25982214]
[1768387292278,6.56748184,145.06,145.01,6.25982214]
[1768387292471,6.2073,145.05,144.99,12.46962214]
[1768387294680,0.0452406,145.03,145.01,0.04603679]
[1768387296186,0.0452406,145.03,144.97,6.37320444]
[1768387296483,0.36215123,145.02,144.95,6.37320444]
[1768387297684,0.04896026,145.0,144.95,6.37320444]
[1768387299789,0.04896026,145.0,144.96,0.04536052]
[1768387301987,0.04896026,145.0,144.96,6.41856496]
[1768387304091,100.29011674,145.07,144.96,6.41856496]
[1768387304287,3.74311674,145.07,144.96,6.41856496]
[1768387304493,3.74311674,145.07,144.96,6.37320444]
[1768387304686,3.74311674,145.07,144.99,6.37320444]
[1768387305286,6.2068,145.06,145.0,6.37320444]
[1768387306394,6.2072,145.05,145.0,6.37320444]
[1768387312596,3.74311674,145.07,145.0,6.37320444]
[1768387312997,0.41342724,145.07,145.0,6.37320444]
[1768387313799,6.2068,145.06,145.0,6.37320444]
[1768387314697,6.2073,145.05,145.0,6.37320444]
[1768387315998,6.623612,145.05,144.98,12.58340444]
[1768387316493,6.623612,145.05,144.99,6.37320444]
[1768387318501,6.2077,145.04,144.99,6.37320444]
[1768387320995,0.41733458,145.04,144.97,6.37320444]
[1768387321199,0.41733458,145.04,144.95,6.37320444]
[1768387321399,0.41733458,145.02,144.95,6.37320444]
[1768387322801,6.2089,145.01,144.96,6.37320444]
[1768387328204,8.34111531,145.03,144.96,6.37320444]
[1768387328509,2.13271531,145.03,144.96,6.37320444]
[1768387328810,2.5562961,145.03,144.96,6.37320444]
[1768387329812,6.2085,145.02,144.96,6.37320444]
[1768387333612,6.2085,145.02,144.98,0.04810446]
[1768387333911,0.04401208,145.0,144.98,0.04810446]
[1768387334112,129.6901,145.07,144.98,0.04810446]
[1768387334113,6.208,145.04,144.98,6.07101128]
[1768387334611,6.208,145.04,144.98,6.02290682]
[1768387335402,6.208,145.04,145.0,0.0441928]
[1768387336008,8.8094622,145.04,145.0,0.0441928]
[1768387337714,2.6014622,145.04,145.0,0.0441928]
[1768387337903,0.46874689,145.04,145.0,0.0441928]
[1768387338107,6.2072,145.06,145.0,6.06709962]
[1768387338108,8.33991531,145.06,145.0,6.06709962]
[1768387339513,8.80659935,145.06,145.0,6.06709962]
[1768387339914,8.80659935,145.06,145.0,12.27639962]
[1768387340713,6.67388404,145.06,145.0,12.27639962]
[1768387340915,6.67388404,145.06,145.0,6.06709962]
[1768387340916,2.13271531,145.05,145.0,6.06709962]
[1768387341812,2.13271531,145.03,144.98,6.31827563]
[1768387344424,0.04354672,145.02,144.98,6.31827563]
[1768387346122,0.04354672,145.02,144.99,0.04889898]
[1768387349120,0.04354672,145.02,144.99,6.36717461]
[1768387356033,8.81032615,145.05,144.99,6.36717461]
[1768387357723,2.60312615,145.05,144.99,12.57677461]
[1768387358934,2.60312615,145.05,144.99,6.36717461]
[1768387361339,0.47041084,145.05,144.99,6.36717461]
[1768387361642,2.60312615,145.05,144.99,6.36717461]
[1768387361938,8.81042615,145.05,144.99,6.36717461]
[1768387362135,2.60312615,145.05,144.99,6.36717461]
[1768387363839,6.2077,145.04,144.99,6.36717461]
[1768387365337,0.47240761,145.04,144.99,6.36717461]
[1768387365637,2.60512292,145.03,144.96,6.09655302]
[1768387366845,6.2085,145.02,144.96,6.09655302]
[1768387368045,6.2089,145.01,144.96,6.09655302]
[1768387368244,6.2089,145.01,144.92,81.48]
[1768387368245,2.60565625,145.01,144.94,6.09655302]
[1768387368639,0.47308547,145.0,144.94,6.09655302]
[1768387369649,6.2098,144.99,144.94,6.09655302]
[1768387371049,0.47308547,145.0,144.94,6.09655302]
[1768387371638,6.2098,144.99,144.94,6.09655302]
[1768387371942,8.34251531,144.99,144.94,6.09655302]
[1768387373144,8.34251531,144.99,144.92,6.2127]
[1768387373145,6.2103,144.98,144.92,6.09655302]
[1768387374544,6.2106,144.97,144.92,6.09655302]
[1768387381955,6.2103,144.98,144.92,6.09655302]
[1768387382551,6.2103,144.98,144.94,0.04735064]
[1768387382759,6.2103,144.98,144.94,6.14390366]
[1768387384261,8.81785356,145.0,144.94,6.14390366]
[1768387384464,8.34241531,145.0,144.94,6.14390366]
[1768387385457,6.75154009,145.0,144.94,6.14390366]
[1768387389668,0.54247505,144.99,144.94,6.14390366]
[1768387391669,6.75247505,144.99,144.94,0.04735064]
[1768387393568,6.2102,144.98,144.94,0.04735064]
[1768387396370,6.75326953,144.98,144.94,0.04735064]
[1768387396570,6.75395861,144.97,144.92,5.94859844]
[1768387398070,6.75395861,144.97,144.9,5.94859844]
[1768387398966,6.2111,144.96,144.9,5.94859844]
[1768387399366,0.53267065,144.96,144.9,5.94859844]
[1768387400774,6.2116,144.95,144.9,5.94859844]
[1768387405666,6.74407065,144.96,144.9,5.94859844]
[1768387407075,0.53454073,144.95,144.89,6.2138]
[1768387407274,0.53454073,144.95,144.89,12.05889168]
[1768387407776,6.2114,144.96,144.9,5.84509168]
[1768387408568,6.2114,144.96,144.9,6.2136]
[1768387408871,6.2114,144.96,144.91,5.84509168]
[1768387417282,6.74872799,144.96,144.91,5.84509168]
[1768387418984,0.5376655,144.94,144.88,6.21027636]
[1768387420790,0.5376655,144.94,144.88,12.42467636]
[1768387421290,0.5376655,144.94,144.89,6.21027636]
[1768387427699,6.2117,144.95,144.89,6.21027636]
[1768387433404,6.2119,144.94,144.89,6.21027636]
[1768387433601,6.2119,144.94,144.87,6.21027636]
[1768387433602,0.53468903,144.94,144.87,6.21027636]
[1768387434905,6.2125,144.93,144.87,6.21027636]
[1768387436810,6.2125,144.93,144.88,6.21027636]
[1768387437909,6.2118,144.95,144.89,6.21027636]
[1768387447915,8.34630184,144.95,144.89,6.21027636]
[1768387461925,6.2118,144.95,144.89,6.21027636]
[1768387475433,84.18018232,144.97,144.9,6.23384572]
[1768387475736,0.52557241,144.96,144.9,6.23384572]
[1768387477934,2.6599641,144.95,144.88,12.44784572]
[1768387478139,2.6599641,144.95,144.88,6.23384572]
[1768387479137,8.8714641,144.95,144.88,6.23384572]
[1768387481743,8.8714641,144.95,144.89,6.23384572]
[1768387485847,6.211,144.96,144.9,6.23384572]
[1768387491249,6.2098,144.99,144.92,6.23384572]
[1768387491447,8.72795723,144.99,144.92,6.23384572]
[1768387492150,0.38365539,144.99,144.93,6.23384572]
[1768387494457,0.34419123,145.02,144.95,6.23384572]
[1768387494750,2.13450184,145.01,144.95,6.23384572]
[1768387495155,2.46581841,145.01,144.95,6.23384572]
[1768387496257,0.31869244,145.0,144.94,6.2116]
[1768387496653,0.31869244,145.0,144.94,12.44544572]
[1768387501158,0.31869244,145.0,144.94,6.23384572]
[1768387501855,0.24550577,144.98,144.91,6.23384572]
[1768387502160,2.38000761,144.98,144.91,6.23384572]
[1768387503564,0.24550577,144.98,144.91,6.23384572]
[1768387507963,0.24550577,144.98,144.91,12.44694572]
[1768387508168,6.2099,144.99,144.92,5.75826277]
[1768387508374,6.37436394,145.01,144.92,5.75826277]
[1768387508669,0.16506394,145.01,144.92,5.75826277]
[1768387509968,6.2103,144.98,144.92,5.75826277]
[1768387514668,6.2106,144.97,144.92,5.75826277]
[1768387514967,0.09233073,144.97,144.9,5.75826277]
[1768387515373,6.30333073,144.97,144.9,5.75826277]
[1768387515871,6.2111,144.96,144.9,5.75826277]
[1768387517279,6.2119,144.95,144.9,5.75826277]
[1768387517584,0.07264902,144.94,144.88,5.75826277]
[1768387517982,6.2119,144.95,144.88,5.75826277]
[1768387521481,6.27411434,144.96,144.89,5.94313069]
[1768387521683,6.2111,144.96,144.89,5.94313069]
[1768387526389,6.2111,144.96,144.9,5.94313069]
[1768387527486,0.02013223,144.97,144.9,5.94313069]
[1768387528092,6.23083223,144.97,144.91,5.94313069]
[1768387531295,6.2102,144.98,144.92,5.94313069]
[1768387532386,6.2098,144.99,144.93,5.94313069]
[1768387536804,12.4154,145.04,144.93,5.94313069]
[1768387536805,99.89118064,145.05,144.93,5.94313069]
[1768387537193,3.33398064,145.03,144.93,5.94313069]
[1768387537904,6.209,145.01,144.94,6.04274177]
[1768387540607,6.2094,145.0,144.94,6.04274177]
[1768387540801,6.2094,145.0,144.92,12.25544177]
[1768387541000,6.2094,145.0,144.93,6.04274177]
[1768387542597,6.2099,144.99,144.93,6.04274177]
[1768387542906,84.85398064,145.01,144.93,6.04274177]
[1768387543802,6.2102,144.98,144.93,6.04274177]
[1768387545707,6.2098,144.99,144.93,6.04274177]
[1768387546705,87.7292,145.01,144.93,6.04274177]
[1768387547905,87.7292,145.01,144.94,6.04274177]
[1768387550710,87.7292,145.01,144.95,6.04274177]
[1768387551098,81.52,145.04,144.95,6.04274177]
[1768387551804,6.2085,145.02,144.95,6.04274177]
[1768387552312,6.2089,145.01,144.95,6.04274177]
[1768387559414,6.2085,145.02,144.96,6.04274177]
[1768387561215,6.2089,145.01,144.96,6.04274177]
[1768387561615,6.2098,144.99,144.91,6.04274177]
[1768387561815,3.33398064,145.01,144.91,6.04274177]
[1768387562713,6.2103,144.98,144.92,6.04274177]
[1768387566021,3.33398064,144.99,144.9,5.82067692]
[1768387566812,6.2111,144.96,144.9,5.82067692]
[1768387567321,6.25850589,144.96,144.93,0.04905091]
[1768387568219,2.13417803,144.95,144.89,240.24344177]
[1768387569423,2.13417803,144.95,144.9,5.82067692]
[1768387570110,0.04740589,144.96,144.9,5.82067692]
[1768387571520,81.5,144.98,144.91,5.82067692]
[1768387572017,2.13417803,144.99,144.91,5.82067692]
[1768387572823,2.13417803,144.99,144.93,5.82067692]
[1768387574916,2.13417803,144.99,144.94,5.82067692]
[1768387575723,6.2096,145.0,144.94,5.82067692]
[1768387575919,8.34377803,145.0,144.94,5.82067692]
[1768387578926,6.2096,145.0,144.94,5.82067692]
[1768387579222,8.34377803,145.0,144.94,5.82067692]
[1768387579723,2.13417803,145.0,144.95,5.7384083]
[1768387582925,8.34357803,145.0,144.93,11.9507083]
[1768387583122,8.34357803,145.0,144.94,5.7384083]
[1768387584328,6.2098,144.99,144.91,5.7384083]
[1768387585527,6.2098,144.99,144.92,11.9511083]
[1768387588730,6.2098,144.99,144.92,5.7384083]
[1768387588928,8.34437803,144.98,144.92,5.7384083]
[1768387589123,2.13417803,144.98,144.9,5.7384083]
[1768387589935,2.13417803,144.96,144.9,5.7384083]
[1768387590627,2.13417803,144.96,144.89,240.24344177]
[1768387591027,2.13417803,144.96,144.89,245.98185007]
[1768387591332,6.2115,144.95,144.89,245.98185007]
[1768387592227,2.13417803,144.94,144.89,245.98185007]
[1768387595741,2.13417803,144.95,144.89,245.98185007]
[1768387596333,2.13417803,144.95,144.9,5.42213639]
[1768387598134,6.2111,144.96,144.9,5.42213639]
[1768387601237,6.2117,144.95,144.9,5.42213639]
[1768387603843,6.211,144.97,144.9,5.42213639]
[1768387604844,6.211,144.97,144.91,5.42213639]
[1768387605235,2.13417803,144.99,144.92,5.42213639]
[1768387605443,2.13417803,145.0,144.92,5.42213639]
[1768387606838,6.2102,144.98,144.92,5.42213639]
[1768387607035,81.52,145.02,144.92,5.42213639]
[1768387607340,2.13417803,145.01,144.92,5.42213639]
[1768387607540,6.2098,144.99,144.93,5.42213639]
[1768387609147,2.13417803,145.01,144.93,5.42213639]
[1768387610045,6.2093,145.0,144.93,11.63443639]
[1768387611441,8.34397803,144.99,144.93,5.42213639]
[1768387612345,2.13417803,144.99,144.93,5.42213639]
[1768387613547,6.2094,145.0,144.94,5.42213639]
[1768387620254,2.13417803,145.01,144.95,5.42213639]
[1768387621251,2.13417803,145.01,144.93,6.212]
[1768387621554,8.34397803,144.99,144.92,11.63483639]
[1768387621750,2.13417803,144.99,144.92,5.42213639]
[1768387621957,2.13417803,144.97,144.9,5.42213639]
[1768387622455,8.34497803,144.97,144.9,5.42213639]
[1768387622656,0.04674462,144.95,144.92,0.04842288]
[1768387629555,8.87713439,145.0,144.92,0.04842288]
[1768387630055,2.66743439,145.0,144.92,0.04842288]
[1768387630759,6.2098,144.99,144.92,0.04842288]
[1768387630958,2.66743439,145.0,144.92,0.04842288]
[1768387631848,6.2102,144.98,144.92,0.04842288]
[1768387632760,2.66743439,145.0,144.92,0.04842288]
[1768387632761,6.2107,144.97,144.92,0.04842288]
[1768387633557,2.66743439,145.0,144.92,0.04842288]
[1768387633754,6.2101,144.99,144.92,0.04842288]
[1768387633954,2.66743439,145.0,144.92,0.04842288]
[1768387634557,178.1,145.02,144.92,5.75683673]
[1768387634558,6.2098,144.99,144.92,5.75683673]
[1768387634960,6.2098,144.99,144.92,5.70841385]
[1768387635353,6.2098,144.99,144.94,0.04501628]
[1768387637163,6.2102,144.98,144.94,0.04501628]
[1768387643171,6.2106,144.97,144.94,0.04501628]
[1768387643371,6.2106,144.97,144.92,5.70841385]
[1768387644470,6.2102,144.98,144.92,5.70841385]
[1768387645071,6.2098,144.99,144.92,5.70841385]
[1768387647678,6.2098,144.99,144.93,5.47835019]
[1768387648068,6.2102,144.98,144.92,6.2126]
[1768387648682,6.2098,144.99,144.93,5.47835019]
[1768387651987,6.2098,144.99,144.93,11.69065019]
[1768387652686,6.2093,145.0,144.93,11.69065019]
[1768387654181,6.2093,145.0,144.94,5.47835019]
[1768387654679,6.2093,145.0,144.94,11.69025019]
[1768387654880,0.0494254,144.98,144.96,0.04722403]
[1768387656788,6.2093,145.0,144.96,0.04722403]
[1768387656995,81.52,145.02,144.96,0.04722403]
[1768387657791,6.209,145.01,144.96,0.04722403]
[1768387665399,6.2095,145.0,144.96,0.04722403]
[1768387665797,2.66743439,145.01,144.91,5.24384343]
[1768387665999,6.2102,144.98,144.91,5.24384343]
[1768387666803,6.2102,144.98,144.91,11.45704343]
[1768387667000,6.2106,144.97,144.91,5.24384343]
[1768387667200,81.52,144.98,144.9,233.04590624]
[1768387667399,2.66743439,144.97,144.9,233.04590624]
[1768387667900,6.2113,144.96,144.9,233.04590624]
[1768387670603,6.2115,144.95,144.9,233.04590624]
[1768387673404,6.2115,144.95,144.89,5.24384343]
[1768387673607,6.2111,144.96,144.9,5.24384343]
[1768387674005,81.52,144.98,144.9,5.24384343]
[1768387674400,81.52,144.98,144.91,5.24384343]
[1768387674598,99.24773439,145.02,144.91,5.24384343]
[1768387674906,81.52,145.01,144.91,5.24384343]
[1768387675906,6.2106,144.98,144.92,5.24384343]
[1768387676906,6.2096,145.0,144.93,5.24384343]
[1768387678607,81.52,145.01,144.94,5.24384343]
[1768387679804,87.7289,145.01,144.94,5.24384343]
[1768387681906,81.52,145.01,144.94,5.24384343]
[1768387682414,6.2093,145.0,144.94,5.24384343]
[1768387695310,7.91586934,145.0,144.94,5.24384343]
[1768387702723,1.70656934,145.02,144.94,5.52639425]
[1768387703829,6.209,145.01,144.94,11.73789425]
[1768387706027,6.2093,145.0,144.94,11.73789425]
[1768387706225,81.52,145.04,144.9,415.22758495]
[1768387706226,1.70656934,144.98,144.92,5.52639425]
[1768387707927,1.70656934,144.98,144.92,11.73909425]
[1768387708815,7.91686934,144.98,144.92,5.52639425]
[1768387711328,6.2103,144.98,144.92,5.52639425]
[1768387711523,1.70656934,144.98,144.93,5.52639425]
[1768387712026,1.70656934,144.98,144.94,5.52639425]
[1768387712528,1.70656934,144.99,144.94,5.52639425]
[1768387713834,6.2096,145.0,144.94,5.52639425]
[1768387714132,1.70656934,144.99,144.95,5.52639425]
[1768387716228,7.91546934,145.01,144.95,11.73779425]
[1768387717023,6.2093,145.0,144.95,5.52639425]
[1768387717335,1.70656934,145.01,144.95,5.52639425]
[1768387717935,7.91636934,144.99,144.93,11.77588108]
[1768387719547,7.91636934,144.99,144.94,5.56368108]
[1768387719838,1.70656934,144.99,144.94,5.56368108]
[1768387721536,6.2094,145.0,144.94,5.56368108]
[1768387721537,1.70656934,145.0,144.95,5.56368108]
[1768387724938,6.2084,145.03,144.96,5.56368108]
[1768387725139,7.91496934,145.03,144.96,5.56368108]
[1768387726741,6.2085,145.02,144.96,5.56368108]
[1768387728845,87.728,145.04,144.96,6.2109]
[1768387729052,87.728,145.04,144.97,5.56368108]
[1768387729347,1.70656934,145.03,144.97,5.56368108]
[1768387729540,7.91466934,145.03,144.97,5.56368108]
[1768387734349,1.70656934,145.03,144.97,5.56368108]
[1768387736950,81.52,145.04,144.99,5.56368108]
[1768387737145,83.22656934,145.04,144.99,5.56368108]
[1768387737747,89.43446934,145.04,144.99,5.56368108]